fUST/lending_fUST_20260530
["ID","MTS","AMOUNT","RATE_DAILY","PERIOD"]
[423425837,1780107040000,-1671.46,9.341e-05,2]
[423425831,1780107040000,-500.96113314,9.341e-05,2]
[423425864,1780107040000,-500.77458117,9.341e-05,2]
[423425861,1780107040000,-505.89264654,9.341e-05,2]
[423425850,1780107040000,-500.0,9.341e-05,2]
[423425859,1780107040000,-500.0,9.341e-05,2]
[423425848,1780107040000,-504.82270942,9.341e-05,2]
[423425857,1780107040000,-501.03387488,9.341e-05,2]
[423425855,1780107040000,-500.0,9.341e-05,2]
[423425852,1780107040000,-504.57018863,9.341e-05,2]
[423425818,1780107040000,-500.0,9.341e-05,2]
[423425823,1780107040000,-503.22503726,9.341e-05,2]
[423425816,1780107040000,-500.0,9.341e-05,2]
[423425765,1780107040000,-500.0,9.341e-05,2]
[423425800,1780107040000,-508.83404703,9.341e-05,2]
[423425744,1780107040000,-501.054987,9.341e-05,2]
[423425747,1780107040000,-502.80949983,9.341e-05,2]
[423425757,1780107040000,-501.72124033,9.341e-05,2]
[423425751,1780107040000,-500.66992973,9.341e-05,2]
[423425761,1780107040000,-500.41765919,9.341e-05,2]
[423425763,1780107040000,-500.72688449,9.341e-05,2]
[423425753,1780107040000,-509.80761959,9.341e-05,2]
[423425759,1780107040000,-501.57400128,9.341e-05,2]
[423425749,1780107040000,-500.43287721,9.341e-05,2]
[423425755,1780107040000,-500.74237843,9.341e-05,2]
[423425767,1780107040000,-503.53757779,9.341e-05,2]
[423425746,1780107040000,-502.95702933,9.341e-05,2]
[423425769,1780107040000,-500.0,9.341e-05,2]
[423425814,1780107040000,-501.14387433,9.341e-05,2]
[423425771,1780107040000,-501.45990942,9.341e-05,2]
[423425775,1780107040000,-500.0,9.341e-05,2]
[423425781,1780107040000,-511.32951511,9.341e-05,2]
[423425783,1780107040000,-500.0,9.341e-05,2]
[423425787,1780107040000,-500.0,9.341e-05,2]
[423425792,1780107040000,-500.0,9.341e-05,2]
[423425788,1780107040000,-500.0,9.341e-05,2]
[423425785,1780107040000,-501.52377131,9.341e-05,2]
[423425790,1780107040000,-501.19102584,9.341e-05,2]
[423425796,1780107040000,-500.99173039,9.341e-05,2]
[423425794,1780107040000,-505.33546032,9.341e-05,2]
[423425802,1780107040000,-563.94809638,9.341e-05,2]
[423425804,1780107040000,-500.0,9.341e-05,2]
[423425798,1780107040000,-500.36231627,9.341e-05,2]
[423425773,1780107040000,-500.91694352,9.341e-05,2]
[423425870,1780107040000,-501.59647926,9.341e-05,2]
[423425845,1780107040000,-500.0,9.341e-05,2]
[423425872,1780107040000,-500.0,9.341e-05,2]
[423425939,1780107040000,-501.22058016,9.341e-05,2]
[423425945,1780107040000,-500.49670267,9.341e-05,2]
[423425941,1780107040000,-500.7912175,9.341e-05,2]
[423425950,1780107040000,-500.0,9.341e-05,2]
[423425947,1780107040000,-503.22006674,9.341e-05,2]
[423425949,1780107040000,-501.38548097,9.341e-05,2]
[423425952,1780107040000,-503.04725047,9.341e-05,2]
[423425966,1780107040000,-500.0,9.341e-05,2]
[423425954,1780107040000,-500.0,9.341e-05,2]
[423425956,1780107040000,-501.55941451,9.341e-05,2]
[423425968,1780107040000,-500.0,9.341e-05,2]
[423425972,1780107040000,-500.75146262,9.341e-05,2]
[423425960,1780107040000,-500.5716291,9.341e-05,2]
[423425970,1780107040000,-500.0,9.341e-05,2]
[423425958,1780107040000,-500.0,9.341e-05,2]
[423425962,1780107040000,-500.0,9.341e-05,2]
[423425964,1780107040000,-500.92595526,9.341e-05,2]
[423425976,1780107040000,-503.92340622,9.341e-05,2]
[423425977,1780107040000,-500.0,9.341e-05,2]
[423425991,1780107040000,-553.67716579,9.341e-05,2]
[423425979,1780107040000,-500.0,9.341e-05,2]
[423425993,1780107040000,-500.0,9.341e-05,2]
[423425995,1780107040000,-501.37586489,9.341e-05,2]
[423425983,1780107040000,-500.0,9.341e-05,2]
[423425989,1780107040000,-500.0,9.341e-05,2]
[423425985,1780107040000,-501.57469485,9.341e-05,2]
[423425988,1780107040000,-500.0,9.341e-05,2]
[423425981,1780107040000,-500.0,9.341e-05,2]
[423425868,1780107040000,-500.0,9.341e-05,2]
[423425943,1780107040000,-501.47650224,9.341e-05,2]
[423425937,1780107040000,-501.34859839,9.341e-05,2]
[423425973,1780107040000,-500.0,9.341e-05,2]
[423425930,1780107040000,-501.46783478,9.341e-05,2]
[423425935,1780107040000,-333.02912016,9.341e-05,2]
[423425874,1780107040000,-500.0,9.341e-05,2]
[423425876,1780107040000,-502.13233265,9.341e-05,2]
[423425885,1780107040000,-279.01981638,9.341e-05,2]
[423425901,1780107040000,-500.0,9.341e-05,2]
[423425877,1780107040000,-503.65452195,9.341e-05,2]
[423425883,1780107040000,-500.0,9.341e-05,2]
[423425897,1780107040000,-500.0,9.341e-05,2]
[423425879,1780107040000,-502.30834424,9.341e-05,2]
[423425891,1780107040000,-500.0,9.341e-05,2]
[423425881,1780107040000,-501.78961681,9.341e-05,2]
[423425893,1780107040000,-501.36214538,9.341e-05,2]
[423425899,1780107040000,-158.1971553,9.341e-05,2]
[423425889,1780107040000,-500.0,9.341e-05,2]
[423425895,1780107040000,-500.0,9.341e-05,2]
[423425887,1780107040000,-500.0,9.341e-05,2]
[423425928,1780107040000,-500.0,9.341e-05,2]
[423425903,1780107040000,-500.0,9.341e-05,2]
[423425926,1780107040000,-501.58922307,9.341e-05,2]
[423425924,1780107040000,-520.95878871,9.341e-05,2]
[423425922,1780107040000,-502.36951561,9.341e-05,2]
[423425918,1780107040000,-502.08155398,9.341e-05,2]
[423425916,1780107040000,-489.83814385,9.341e-05,2]
[423425920,1780107040000,-500.0,9.341e-05,2]
[423425912,1780107040000,-500.0,9.341e-05,2]
[423425910,1780107040000,-500.34222049,9.341e-05,2]
[423425908,1780107040000,-501.55792891,9.341e-05,2]
[423425905,1780107040000,-500.64093364,9.341e-05,2]
[423425907,1780107040000,-501.84210495,9.341e-05,2]
[423425914,1780107040000,-503.38641914,9.341e-05,2]
[423426084,1780107041000,-500.64579494,9.341e-05,2]
[423426086,1780107041000,-501.0751449,9.341e-05,2]
[423426090,1780107041000,-500.0,9.341e-05,2]
[423426100,1780107041000,-647.64836153,9.342e-05,2]
[423426082,1780107041000,-501.63069516,9.341e-05,2]
[423426079,1780107041000,-217.96951953,9.341e-05,2]
[423426061,1780107041000,-1350.3359,9.341e-05,2]
[423426067,1780107041000,-500.0,9.341e-05,2]
[423426071,1780107041000,-501.06245458,9.341e-05,2]
[423426069,1780107041000,-500.0,9.341e-05,2]
[423426075,1780107041000,-500.42083201,9.341e-05,2]
[423426073,1780107041000,-500.85075593,9.341e-05,2]
[423426096,1780107041000,-500.0,9.341e-05,2]
[423426080,1780107041000,-503.21801214,9.341e-05,2]
[423426088,1780107041000,-500.57190029,9.341e-05,2]
[423426121,1780107041000,-514.79761726,9.342e-05,2]
[423426098,1780107041000,-500.0,9.342e-05,2]
[423426092,1780107041000,-500.8279042,9.341e-05,2]
[423426094,1780107041000,-500.0,9.341e-05,2]
[423426104,1780107041000,-500.0,9.342e-05,2]
[423426106,1780107041000,-501.64114827,9.342e-05,2]
[423426108,1780107041000,-500.0,9.342e-05,2]
[423426110,1780107041000,-500.0,9.342e-05,2]
[423426112,1780107041000,-491.86654917,9.342e-05,2]
[423426137,1780107041000,-502.47578621,9.342e-05,2]
[423426125,1780107041000,-501.65606598,9.342e-05,2]
[423426117,1780107041000,-502.5409269,9.342e-05,2]
[423426123,1780107041000,-501.06614783,9.342e-05,2]
[423426131,1780107041000,-500.41092781,9.342e-05,2]
[423426063,1780107041000,-501.39917896,9.341e-05,2]
[423426102,1780107041000,-500.0,9.342e-05,2]
[423426077,1780107041000,-501.09012774,9.341e-05,2]
[423425999,1780107041000,-615.29,9.341e-05,2]
[423426059,1780107041000,-503.1965039,9.341e-05,2]
[423426135,1780107041000,-500.0,9.342e-05,2]
[423426001,1780107041000,-500.0,9.341e-05,2]
[423426003,1780107041000,-510.91244771,9.341e-05,2]
[423426005,1780107041000,-500.0,9.341e-05,2]
[423426029,1780107041000,-500.0,9.341e-05,2]
[423426027,1780107041000,-500.0,9.341e-05,2]
[423426025,1780107041000,-505.45149381,9.341e-05,2]
[423426023,1780107041000,-500.0,9.341e-05,2]
[423426017,1780107041000,-500.0,9.341e-05,2]
[423426015,1780107041000,-500.0,9.341e-05,2]
[423426031,1780107041000,-500.89556431,9.341e-05,2]
[423426019,1780107041000,-501.02994219,9.341e-05,2]
[423426009,1780107041000,-518.35751386,9.341e-05,2]
[423426007,1780107041000,-500.0,9.341e-05,2]
[423426065,1780107041000,-469.9593715,9.341e-05,2]
[423426011,1780107041000,-501.62288992,9.341e-05,2]
[423426021,1780107041000,-564.87499335,9.341e-05,2]
[423426037,1780107041000,-503.13644743,9.341e-05,2]
[423426033,1780107041000,-500.0,9.341e-05,2]
[423426035,1780107041000,-502.18339029,9.341e-05,2]
[423426041,1780107041000,-500.0,9.341e-05,2]
[423426039,1780107041000,-500.0,9.341e-05,2]
[423426043,1780107041000,-500.0,9.341e-05,2]
[423426049,1780107041000,-503.0011863,9.341e-05,2]
[423426047,1780107041000,-501.83657997,9.341e-05,2]
[423426045,1780107041000,-500.0,9.341e-05,2]
[423426051,1780107041000,-500.0,9.341e-05,2]
[423426055,1780107041000,-543.14020671,9.341e-05,2]
[423426053,1780107041000,-443.79236206,9.341e-05,2]
[423426057,1780107041000,-500.0,9.341e-05,2]
[423426013,1780107041000,-501.00440342,9.341e-05,2]
[423426133,1780107041000,-501.36800983,9.342e-05,2]
[423425997,1780107041000,-502.70639418,9.341e-05,2]
[423426119,1780107041000,-501.27981973,9.342e-05,2]
[423426194,1780107041000,-500.0,9.45e-05,2]
[423426202,1780107041000,-502.73655143,9.45e-05,2]
[423426200,1780107041000,-504.91238248,9.45e-05,2]
[423426198,1780107041000,-500.0,9.45e-05,2]
[423426196,1780107041000,-500.0,9.45e-05,2]
[423426213,1780107041000,-245.7441109,9.455e-05,2]
[423426215,1780107041000,-935.3031737,9.479e-05,2]
[423426219,1780107041000,-12492.0069376,9.479e-05,2]
[423426217,1780107041000,-530.0119293,9.479e-05,2]
[423426223,1780107041000,-236.5283135,9.479e-05,2]
[423426225,1780107041000,-203.1886351,9.479e-05,2]
[423426227,1780107041000,-4868.0791447,9.479e-05,2]
[423426229,1780107041000,-375.23323577,9.501e-05,2]
[423426231,1780107041000,-237.66189875,9.501e-05,2]
[423426209,1780107041000,-598.38,9.45e-05,2]
[423426237,1780107041000,-500.0,9.599e-05,2]
[423426233,1780107041000,-500.0,9.599e-05,2]
[423426240,1780107041000,-502.90265256,9.615e-05,2]
[423426242,1780107041000,-500.98055438,9.615e-05,2]
[423426235,1780107041000,-500.0,9.599e-05,2]
[423426244,1780107041000,-500.5697632,9.615e-05,2]
[423426246,1780107041000,-502.11086007,9.615e-05,2]
[423426258,1780107041000,-500.0,9.615e-05,2]
[423426260,1780107041000,-500.0,9.615e-05,2]
[423426254,1780107041000,-500.5675148,9.615e-05,2]
[423426250,1780107041000,-501.79130663,9.615e-05,2]
[423426256,1780107041000,-500.0,9.615e-05,2]
[423426248,1780107041000,-507.45960294,9.615e-05,2]
[423426252,1780107041000,-505.95481554,9.615e-05,2]
[423426115,1780107041000,-501.81607691,9.342e-05,2]
[423426238,1780107041000,-500.0,9.615e-05,2]
[423426211,1780107041000,-500.0,9.45e-05,2]
[423426221,1780107041000,-16785.5548865,9.479e-05,2]
[423426192,1780107041000,-209.99122906,9.45e-05,2]
[423426145,1780107041000,-381.688,9.343e-05,2]
[423426149,1780107041000,-500.0,9.386e-05,2]
[423426163,1780107041000,-500.0,9.449e-05,2]
[423426147,1780107041000,-500.0,9.343e-05,2]
[423426160,1780107041000,-502.59578864,9.449e-05,2]
[423426141,1780107041000,-501.07991012,9.342e-05,2]
[423426143,1780107041000,-506.42377294,9.342e-05,2]
[423426158,1780107041000,-501.50565481,9.449e-05,2]
[423426154,1780107041000,-500.0,9.449e-05,2]
[423426153,1780107041000,-502.11206971,9.386e-05,2]
[423426127,1780107041000,-500.65906846,9.342e-05,2]
[423426129,1780107041000,-500.58503686,9.342e-05,2]
[423426139,1780107041000,-500.5934344,9.342e-05,2]
[423426208,1780107041000,-3150.47,9.45e-05,2]
[423426157,1780107041000,-500.0,9.449e-05,2]
[423426151,1780107041000,-500.0,9.386e-05,2]
[423426114,1780107041000,-512.22444811,9.342e-05,2]
[423426206,1780107041000,-500.0,9.45e-05,2]
[423426165,1780107041000,-500.0,9.449e-05,2]
[423426204,1780107041000,-584.00333388,9.45e-05,2]
[423426184,1780107041000,-500.0,9.45e-05,2]
[423426181,1780107041000,-500.0,9.45e-05,2]
[423426179,1780107041000,-500.0,9.449e-05,2]
[423426190,1780107041000,-640.77055543,9.45e-05,2]
[423426182,1780107041000,-500.0,9.45e-05,2]
[423426175,1780107041000,-500.0,9.449e-05,2]
[423426173,1780107041000,-619.8,9.449e-05,2]
[423426177,1780107041000,-500.0,9.449e-05,2]
[423426171,1780107041000,-500.0,9.449e-05,2]
[423426167,1780107041000,-500.0,9.449e-05,2]
[423426169,1780107041000,-500.0,9.449e-05,2]
[423426188,1780107041000,-500.0,9.45e-05,2]
[423426345,1780107042000,-500.91673534,9.615e-05,2]
[423426356,1780107042000,-500.44498191,9.615e-05,2]
[423426352,1780107042000,-507.62730501,9.615e-05,2]
[423426351,1780107042000,-616.0429134,9.615e-05,2]
[423426349,1780107042000,-500.49107629,9.615e-05,2]
[423426347,1780107042000,-500.0,9.615e-05,2]
[423426343,1780107042000,-502.26446566,9.615e-05,2]
[423426336,1780107042000,-615.29,9.615e-05,2]
[423426337,1780107042000,-500.0,9.615e-05,2]
[423426333,1780107042000,-503.03469566,9.615e-05,2]
[423426340,1780107042000,-496.54710777,9.615e-05,2]
[423426331,1780107042000,-500.85807353,9.615e-05,2]
[423426355,1780107042000,-500.5849176,9.615e-05,2]
[423426341,1780107042000,-500.41019637,9.615e-05,2]
[423426358,1780107042000,-266.68757677,9.615e-05,2]
[423426363,1780107042000,-1350.3359,9.615e-05,2]
[423426360,1780107042000,-502.81412931,9.615e-05,2]
[423426365,1780107042000,-500.0,9.615e-05,2]
[423426364,1780107042000,-500.0,9.615e-05,2]
[423426366,1780107042000,-501.99385605,9.616e-05,2]
[423426362,1780107042000,-500.0,9.615e-05,2]
[423426368,1780107042000,-500.0,9.616e-05,2]
[423426367,1780107042000,-500.0,9.616e-05,2]
[423426369,1780107042000,-500.0,9.616e-05,2]
[423426371,1780107042000,-501.7069529,9.617e-05,2]
[423426374,1780107042000,-500.0,9.708e-05,2]
[423426377,1780107042000,-500.0,9.723e-05,2]
[423426382,1780107042000,-619.8,9.723e-05,2]
[423426376,1780107042000,-500.0,9.723e-05,2]
[423426381,1780107042000,-500.0,9.723e-05,2]
[423426361,1780107042000,-502.84646619,9.615e-05,2]
[423426325,1780107042000,-504.81083638,9.615e-05,2]
[423426262,1780107042000,-506.63508652,9.615e-05,2]
[423426320,1780107042000,-500.93292943,9.615e-05,2]
[423426264,1780107042000,-1671.46,9.615e-05,2]
[423426266,1780107042000,-500.0,9.615e-05,2]
[423426269,1780107042000,-616.38382605,9.615e-05,2]
[423426271,1780107042000,-535.81365897,9.615e-05,2]
[423426268,1780107042000,-500.0,9.615e-05,2]
[423426285,1780107042000,-533.88045715,9.615e-05,2]
[423426291,1780107042000,-500.78204414,9.615e-05,2]
[423426273,1780107042000,-500.53877032,9.615e-05,2]
[423426289,1780107042000,-501.05302858,9.615e-05,2]
[423426287,1780107042000,-504.57427401,9.615e-05,2]
[423426275,1780107042000,-500.64385131,9.615e-05,2]
[423426277,1780107042000,-500.5173453,9.615e-05,2]
[423426279,1780107042000,-502.43624437,9.615e-05,2]
[423426283,1780107042000,-502.01809114,9.615e-05,2]
[423426323,1780107042000,-500.0,9.615e-05,2]
[423426281,1780107042000,-501.97734822,9.615e-05,2]
[423426296,1780107042000,-501.76532974,9.615e-05,2]
[423426298,1780107042000,-500.0,9.615e-05,2]
[423426295,1780107042000,-501.01984449,9.615e-05,2]
[423426300,1780107042000,-516.51862447,9.615e-05,2]
[423426312,1780107042000,-500.0,9.615e-05,2]
[423426304,1780107042000,-615.82829628,9.615e-05,2]
[423426318,1780107042000,-500.0,9.615e-05,2]
[423426310,1780107042000,-541.90951657,9.615e-05,2]
[423426306,1780107042000,-500.53725869,9.615e-05,2]
[423426302,1780107042000,-500.3976258,9.615e-05,2]
[423426308,1780107042000,-500.0,9.615e-05,2]
[423426314,1780107042000,-500.4141885,9.615e-05,2]
[423426316,1780107042000,-500.0,9.615e-05,2]
[423426321,1780107042000,-500.83228212,9.615e-05,2]
[423426293,1780107042000,-500.73597516,9.615e-05,2]
[423426379,1780107042000,-500.0,9.723e-05,2]
[423426372,1780107042000,-159.44352289,9.66e-05,2]
[423426375,1780107042000,-500.0,9.723e-05,2]
[423426423,1780107042000,-500.96453835,9.889e-05,2]
[423426411,1780107042000,-651.0,9.813e-05,2]
[423426422,1780107042000,-259.11281354,9.889e-05,2]
[423426420,1780107042000,-504.78306346,9.889e-05,2]
[423426414,1780107042000,-500.0,9.889e-05,2]
[423426413,1780107042000,-651.0,9.813e-05,2]
[423426416,1780107042000,-506.53724441,9.889e-05,2]
[423426418,1780107042000,-1671.46,9.889e-05,2]
[423426419,1780107042000,-502.73525203,9.889e-05,2]
[423426417,1780107042000,-502.81332446,9.889e-05,2]
[423426425,1780107042000,-626.62788911,9.889e-05,2]
[423426435,1780107042000,-500.0,9.89e-05,2]
[423426436,1780107042000,-508.56479567,9.89e-05,2]
[423426437,1780107042000,-420.0,9.973e-05,2]
[423426415,1780107042000,-501.54661141,9.889e-05,2]
[423426427,1780107042000,-615.29,9.889e-05,2]
[423426426,1780107042000,-502.29081186,9.889e-05,2]
[423426428,1780107042000,-601.93131586,9.889e-05,2]
[423426433,1780107042000,-500.0,9.889e-05,2]
[423426434,1780107042000,-501.30375974,9.89e-05,2]
[423426430,1780107042000,-500.0,9.889e-05,2]
[423426432,1780107042000,-500.0,9.889e-05,2]
[423426431,1780107042000,-1625.6189,9.889e-05,2]
[423426429,1780107042000,-500.0,9.889e-05,2]
[423426438,1780107042000,-1680.0,9.973e-05,2]
[423426441,1780107042000,-300.0,9.997e-05,2]
[423426440,1780107042000,-300.0,9.997e-05,2]
[423426443,1780107042000,-300.0,9.997e-05,2]
[423426442,1780107042000,-300.0,9.997e-05,2]
[423426378,1780107042000,-500.0,9.723e-05,2]
[423426424,1780107042000,-500.0,9.889e-05,2]
[423426421,1780107042000,-500.0,9.889e-05,2]
[423426439,1780107042000,-600.0,9.996e-05,2]
[423426407,1780107042000,-651.0,9.813e-05,2]
[423426412,1780107042000,-651.0,9.813e-05,2]
[423426373,1780107042000,-235.72779491,9.708e-05,2]
[423426380,1780107042000,-500.0,9.723e-05,2]
[423426383,1780107042000,-500.0,9.723e-05,2]
[423426387,1780107042000,-500.0,9.724e-05,2]
[423426392,1780107042000,-500.0,9.724e-05,2]
[423426388,1780107042000,-500.0,9.724e-05,2]
[423426393,1780107042000,-500.0,9.724e-05,2]
[423426395,1780107042000,-598.38,9.724e-05,2]
[423426391,1780107042000,-500.0,9.724e-05,2]
[423426389,1780107042000,-511.24084673,9.724e-05,2]
[423426394,1780107042000,-3150.47,9.724e-05,2]
[423426386,1780107042000,-500.0,9.724e-05,2]
[423426390,1780107042000,-187.91848223,9.724e-05,2]
[423426385,1780107042000,-500.0,9.723e-05,2]
[423426370,1780107042000,-500.0,9.616e-05,2]
[423426396,1780107042000,-500.0,9.724e-05,2]
[423426384,1780107042000,-500.0,9.723e-05,2]
[423426406,1780107042000,-651.0,9.813e-05,2]
[423426402,1780107042000,-651.0,9.813e-05,2]
[423426403,1780107042000,-651.0,9.813e-05,2]
[423426405,1780107042000,-651.0,9.813e-05,2]
[423426404,1780107042000,-651.0,9.813e-05,2]
[423426401,1780107042000,-180.0,9.813e-05,2]
[423426399,1780107042000,-166.0,9.813e-05,2]
[423426397,1780107042000,-297.28834937,9.775e-05,2]
[423426409,1780107042000,-651.0,9.813e-05,2]
[423426410,1780107042000,-651.0,9.813e-05,2]
[423426408,1780107042000,-651.0,9.813e-05,2]
[423426398,1780107042000,-166.0,9.802e-05,2]
[423426400,1780107042000,-180.0,9.813e-05,2]
[423426496,1780107043000,-513.56104156,0.00010256,2]
[423426484,1780107043000,-500.0,0.00010163,2]
[423426482,1780107043000,-1671.46,0.00010163,2]
[423426494,1780107043000,-528.5126211,0.00010167,2]
[423426492,1780107043000,-503.40822825,0.00010163,2]
[423426477,1780107043000,-692.76572937,0.00010001,2]
[423426495,1780107043000,-470.04066861,0.0001019,2]
[423426491,1780107043000,-423.7138302,0.00010163,2]
[423426490,1780107043000,-500.0,0.00010163,2]
[423426493,1780107043000,-470.90171259,0.00010164,2]
[423426480,1780107043000,-500.0,0.00010163,2]
[423426479,1780107043000,-500.0,0.00010107,2]
[423426487,1780107043000,-615.29,0.00010163,2]
[423426498,1780107043000,-500.0,0.00010271,2]
[423426485,1780107043000,-500.0,0.00010163,2]
[423426511,1780107043000,-500.0,0.00010272,2]
[423426513,1780107043000,-500.0,0.00010272,2]
[423426506,1780107043000,-619.8,0.00010271,2]
[423426505,1780107043000,-500.0,0.00010271,2]
[423426499,1780107043000,-500.0,0.00010271,2]
[423426497,1780107043000,-500.0,0.00010271,2]
[423426509,1780107043000,-510.47812072,0.00010272,2]
[423426510,1780107043000,-500.0,0.00010272,2]
[423426501,1780107043000,-500.0,0.00010271,2]
[423426504,1780107043000,-637.54448085,0.00010271,2]
[423426507,1780107043000,-500.0,0.00010271,2]
[423426508,1780107043000,-505.77495825,0.00010271,2]
[423426478,1780107043000,-165.0,0.00010027,2]
[423426489,1780107043000,-500.0,0.00010163,2]
[423426473,1780107043000,-598.38,9.998e-05,2]
[423426459,1780107043000,-500.0,9.997e-05,2]
[423426470,1780107043000,-500.0,9.998e-05,2]
[423426446,1780107043000,-300.0,9.997e-05,2]
[423426448,1780107043000,-300.0,9.997e-05,2]
[423426451,1780107043000,-300.0,9.997e-05,2]
[423426444,1780107043000,-300.0,9.997e-05,2]
[423426447,1780107043000,-300.0,9.997e-05,2]
[423426445,1780107043000,-300.0,9.997e-05,2]
[423426450,1780107043000,-300.0,9.997e-05,2]
[423426449,1780107043000,-300.0,9.997e-05,2]
[423426461,1780107043000,-500.0,9.997e-05,2]
[423426453,1780107043000,-300.0,9.997e-05,2]
[423426452,1780107043000,-300.0,9.997e-05,2]
[423426455,1780107043000,-500.0,9.997e-05,2]
[423426462,1780107043000,-619.8,9.997e-05,2]
[423426458,1780107043000,-500.0,9.997e-05,2]
[423426456,1780107043000,-500.0,9.997e-05,2]
[423426463,1780107043000,-506.73947258,9.997e-05,2]
[423426460,1780107043000,-500.0,9.997e-05,2]
[423426454,1780107043000,-300.0,9.997e-05,2]
[423426457,1780107043000,-500.0,9.997e-05,2]
[423426464,1780107043000,-500.0,9.997e-05,2]
[423426466,1780107043000,-500.0,9.998e-05,2]
[423426468,1780107043000,-500.0,9.998e-05,2]
[423426467,1780107043000,-500.0,9.998e-05,2]
[423426469,1780107043000,-500.0,9.998e-05,2]
[423426465,1780107043000,-500.0,9.997e-05,2]
[423426472,1780107043000,-3150.47,9.998e-05,2]
[423426471,1780107043000,-202.47738791,9.998e-05,2]
[423426475,1780107043000,-1987.565757,0.0001,2]
[423426474,1780107043000,-506.58862716,9.998e-05,2]
[423426476,1780107043000,-384.86984965,0.00010001,2]
[423426523,1780107043000,-651.0,0.00010288,2]
[423426503,1780107043000,-500.0,0.00010271,2]
[423426524,1780107043000,-651.0,0.00010288,2]
[423426551,1780107043000,-651.0,0.00010703,2]
[423426550,1780107043000,-180.89712142,0.00010703,2]
[423426554,1780107043000,-651.0,0.00010703,2]
[423426552,1780107043000,-651.0,0.00010703,2]
[423426553,1780107043000,-651.0,0.00010703,2]
[423426558,1780107043000,-500.0,0.00010711,2]
[423426555,1780107043000,-606.17910702,0.00010703,2]
[423426559,1780107043000,-615.29,0.00010711,2]
[423426557,1780107043000,-1671.46,0.00010711,2]
[423426560,1780107043000,-500.0,0.00010711,2]
[423426556,1780107043000,-500.0,0.00010711,2]
[423426562,1780107043000,-13802.019995,0.000108,2]
[423426573,1780107043000,-419.22730876,0.0001082,2]
[423426572,1780107043000,-500.0,0.0001082,2]
[423426574,1780107043000,-500.0,0.0001082,2]
[423426561,1780107043000,-494.14363578,0.00010711,2]
[423426563,1780107043000,-2657.43932508,0.000108,2]
[423426564,1780107043000,-369.04313953,0.00010819,2]
[423426566,1780107043000,-500.0,0.00010819,2]
[423426567,1780107043000,-500.0,0.00010819,2]
[423426565,1780107043000,-600.21358165,0.00010819,2]
[423426570,1780107043000,-500.0,0.00010819,2]
[423426571,1780107043000,-500.0,0.0001082,2]
[423426568,1780107043000,-193.27475854,0.00010819,2]
[423426569,1780107043000,-619.8,0.00010819,2]
[423426576,1780107043000,-598.38,0.0001082,2]
[423426577,1780107043000,-500.0,0.00010958,2]
[423426578,1780107043000,-500.0,0.00010958,3]
[423426515,1780107043000,-598.38,0.00010272,2]
[423426549,1780107043000,-217.96951952,0.00010656,2]
[423426548,1780107043000,-598.38,0.00010546,2]
[423426575,1780107043000,-3150.47,0.0001082,2]
[423426542,1780107043000,-500.0,0.00010545,2]
[423426512,1780107043000,-500.0,0.00010272,2]
[423426514,1780107043000,-3150.47,0.00010272,2]
[423426516,1780107043000,-166.0,0.00010288,2]
[423426518,1780107043000,-651.0,0.00010288,2]
[423426517,1780107043000,-651.0,0.00010288,2]
[423426520,1780107043000,-651.0,0.00010288,2]
[423426522,1780107043000,-651.0,0.00010288,2]
[423426521,1780107043000,-651.0,0.00010288,2]
[423426544,1780107043000,-500.0,0.00010546,2]
[423426525,1780107043000,-166.15729412,0.00010388,2]
[423426528,1780107043000,-500.0,0.00010437,2]
[423426526,1780107043000,-1039.13257729,0.000104,2]
[423426532,1780107043000,-615.29,0.00010437,2]
[423426533,1780107043000,-500.0,0.00010437,2]
[423426519,1780107043000,-651.0,0.00010288,2]
[423426530,1780107043000,-563.96,0.00010437,2]
[423426543,1780107043000,-500.0,0.00010546,2]
[423426529,1780107043000,-1671.46,0.00010437,2]
[423426541,1780107043000,-619.8,0.00010545,2]
[423426539,1780107043000,-500.0,0.00010545,2]
[423426537,1780107043000,-500.0,0.00010545,2]
[423426538,1780107043000,-382.65151654,0.00010545,2]
[423426540,1780107043000,-500.0,0.00010545,2]
[423426534,1780107043000,-500.0,0.00010437,2]
[423426545,1780107043000,-500.0,0.00010546,2]